[Event "4NCL Div 1 2024-25"]
[Site "England"]
[Date "2024.11.24"]
[Round "2.45"]
[White "Foisor, Mihaela-Veronica"]
[Black "Yoon, Jacob D"]
[Result "1/2-1/2"]
[Annotator "RC"]
[ECO "D11"]
[WhiteElo "2156"]
[BlackElo "2270"]
[PlyCount "168"]
[EventDate "2024.11.23"]
[EventType "team-tourn"]
[EventCountry "ENG"]
[SourceTitle "playchess.com"]
[Source "ChessBase"]
[SourceQuality "1"]
[TimeControl "40/6000+30:3000+30"]

1. c4 {[%emt 0:10:09]} c6 {[%emt 0:10:04]} 2. d4 {[%emt 0:00:08]} d5 {[%emt 0:00:04]} 3. e3 {[%emt 0:00:40]} Nf6 {[%emt 0:00:05]} 4. Nc3 {[%emt 0:00:05]} a6 {[%emt 0:00:09]} 5. a4 {[%emt 0:00:56]} Bf5 {[%emt 0:01:10]} 6. Nf3 {[%emt 0:01:06]} e6 {[%emt 0:03:12]} 7. Bd3 {[%emt 0:05:01]} Bxd3 {[%emt 0:04:38]} 8. Qxd3 {[%emt 0:01:31]} Bb4 {[%emt 0:02:48]} 9. O-O {[%emt 0:01:21]} Nbd7 {[%emt 0:00:05]} 10. Bd2 {[%emt 0:06:35]} O-O {[%emt 0:00:29]} 11. Nxd5 {[%emt 0:02:24]} exd5 {[%emt 0:05:46]} 12. Bxb4 {[%emt 0:00:08]} Re8 {[%emt 0:00:02]} 13. Nd2 {[%emt 0:08:34]} Re6 {[%emt 0:03:31]} 14. Rae1 {[%emt 0:02:24]} dxc4 {[%emt 0:07:35]} 15. Nxc4 {[%emt 0:12:30]} b5 {[%emt 0:04:38]} 16. axb5 {[%emt 0:07:10]} axb5 {[%emt 0:08:11]} 17. Nd2 {[%emt 0:06:29]} Nd5 {[%emt 0:00:41]} 18. Bc5 {[%emt 0:01:26]} Nxc5 {[%emt 0:02:33]} 19. dxc5 {[%emt 0:00:11]} Qf6 {[%emt 0:06:45]} 20. Qd4 {[%emt 0:05:27]} Qe7 {[%emt 0:05:15]} 21. b4 {[%emt 0:11:44]} Rd8 {[%emt 0:01:24]} 22. Qb2 {[%emt 0:01:20]} Qh4 {[%emt 0:02:57]} 23. Nf3 {[%emt 0:10:51]} Qxb4 {[%emt 0:06:51]} 24. Qxb4 {[%emt 0:00:05]} Nxb4 {[%emt 0:00:02]} 25. Nd4 {[%emt 0:00:06]} Rf6 {[%emt 0:00:31]} 26. Ra1 {[%emt 0:00:44]} h6 {[%emt 0:02:37]} 27. Ra3 {[%emt 0:09:10]} Kh7 {[%emt 0:10:53]} 28. Rb1 {[%emt 0:01:16]} Nd5 {[%emt 0:00:01]} 29. g3 {[%emt 0:01:57]} Nc7 {[%emt 0:05:05]} 30. Ra7 {[%emt 0:01:31]} Nd5 {[%emt 0:08:34]} 31. Rb3 {[%emt 0:00:48]} Rc8 {[%emt 0:01:01]} 32. Kg2 {[%emt 0:00:45]} Nc7 {[%emt 0:06:19]} 33. Rba3 {[%emt 0:00:53]} Kg8 {[%emt 0:02:10]} 34. Rb7 {[%emt 0:00:33]} Ne6 {[%emt 0:00:21]} 35. Nxe6 {[%emt 0:00:11]} Rxe6 {[%emt 0:00:03]} 36. Raa7 {[%emt 0:00:10]} Rf8 {[%emt 0:00:19]} 37. Rc7 {[%emt 0:00:23]} g5 {[%emt 0:01:14]} 38. Ra6 {[%emt 0:00:56]} Kg7 {[%emt 0:00:45]} 39. Raxc6 {[%emt 0:00:52]} Rxc6 {[%emt 0:00:00]} 40. Rxc6 {[%emt 0:00:05]} b4 {[%emt 0:00:02]} 41. Rb6 {[%emt 0:50:48]} Rc8 {[%emt 0:50:02]} 42. Rb5 {[%emt 0:01:18]} b3 {[%emt 0:00:04]} 43. g4 {[%emt 0:00:00]} b2 {[%emt 0:00:00]} 44. Rxb2 {[%emt 0:00:00]} Rxc5 {[%emt 0:00:00]} 45. Kg3 {[%emt 0:00:00]} Rc1 {[%emt 0:00:00]} 46. f4 {[%emt 0:00:00]} Rg1+ {[%emt 0:00:00]} 47. Kf3 {[%emt 0:00:00]} Ra1 {[%emt 0:00:00]} 48. Rd2 {[%emt 0:00:00]} Ra4 {[%emt 0:00:00]} 49. Rd5 {[%emt 0:00:00]} Kg6 {[%emt 0:00:00]} 50. Rd4 {[%emt 0:00:00]} Ra2 {[%emt 0:00:00]} 51. h3 {[%emt 0:00:00]} Rh2 {[%emt 0:00:00]} 52. Rd6+ {[%emt 0:00:00]} Kg7 {[%emt 0:00:00]} 53. Kg3 {[%emt 0:00:00]} Re2 {[%emt 0:00:00]} 54. Rd3 {[%emt 0:00:00]} Re1 {[%emt 0:00:00]} 55. Kf2 {[%emt 0:00:00]} Rh1 {[%emt 0:00:00]} 56. Kg2 {[%emt 0:00:00]} Re1 {[%emt 0:00:00]} 57. Rd5 {[%emt 0:00:00]} Kg6 {[%emt 0:00:00]} 58. Re5 {[%emt 0:00:00]} Re2+ {[%emt 0:00:00]} 59. Kf3 {[%emt 0:00:00]} Rh2 {[%emt 0:00:00]} 60. Kg3 {[%emt 0:00:00]} Re2 {[%emt 0:00:00]} 61. h4 {[%emt 0:00:00]} gxf4+ {[%emt 0:00:00]} 62. exf4 {[%emt 0:00:00]} Ra2 {[%emt 0:00:00]} 63. h5+ {[%emt 0:00:00]} Kg7 {[%emt 0:00:00]} 64. g5 {[%emt 0:04:44]} hxg5 {[%emt 0:00:00]} 65. fxg5 {[%emt 0:00:05]} Ra1 {[%emt 0:00:00]} 66. Re4 {[%emt 0:00:23]} Ra5 {[%emt 0:00:00]} 67. Kg4 {[%emt 0:00:15]} Rb5 {[%emt 0:00:00]} 68. Ra4 {[%emt 0:00:14]} Rb1 {[%emt 0:00:00]} 69. h6+ {[%emt 0:01:19]} Kg8 {[%emt 0:00:00]} 70. Ra8+ {[%emt 0:00:48]} Kh7 {[%emt 0:00:00]} 71. Kf5 {[%emt 0:02:43]} Rf1+ {[%emt 0:00:00]} 72. Ke5 {[%emt 0:00:10]} Rf2 {[%emt 0:00:00]} 73. Rf8 {[%emt 0:00:40]} Rf1 {[%emt 0:00:00]} 74. Rb8 {[%emt 0:02:19]} Rf2 {[%emt 0:00:00]} 75. Rb6 {[%emt 0:00:25]} Kg8 {[%emt 0:00:02]} 76. Rb4 {[%emt 0:01:04]} Rf1 {[%emt 0:01:47]} 77. Rf4 {[%emt 0:00:23]} Ra1 {[%emt 0:00:20]} 78. Kf5 {[%emt 0:00:14]} Ra5+ {[%emt 0:00:19]} 79. Kg4 {[%emt 0:00:06]} Ra1 {[%emt 0:00:22]} 80. Re4 {[%emt 0:02:12]} Rf1 {[%emt 0:00:50]} 81. Kh5 {[%emt 0:01:18]} Rh1+ {[%emt 0:00:05]} 82. Rh4 {[%emt 0:00:05]} Rg1 {[%emt 0:00:11]} 83. Rf4 {[%emt 0:00:03]} Rh1+ {[%emt 0:00:07]} 84. Kg4 {[%emt 0:00:03]} Ra1 {[%emt 0:00:05]} 1/2-1/2

[Event "4NCL Div 1 2024-25"]
[Site "England"]
[Date "2024.11.24"]
[Round "2.46"]
[White "Mirzoeva, Elmira"]
[Black "Birtwistle, Nigel"]
[Result "1-0"]
[Annotator "RC"]
[ECO "A57"]
[WhiteElo "2258"]
[BlackElo "2041"]
[PlyCount "63"]
[EventDate "2024.11.23"]
[EventType "team-tourn"]
[EventCountry "ENG"]
[SourceTitle "playchess.com"]
[Source "ChessBase"]
[SourceQuality "1"]
[TimeControl "40/6000+30:3000+30"]

1. d4 {[%emt 0:10:03]} Nf6 {[%emt 0:10:25]} 2. c4 {[%emt 0:00:15]} c5 {[%emt 0:00:32]} 3. d5 {[%emt 0:00:12]} b5 {[%emt 0:00:16]} 4. cxb5 {[%emt 0:00:20]} a6 {[%emt 0:00:17]} 5. e3 {[%emt 0:00:16]} g6 {[%emt 0:01:44]} 6. Nf3 {[%emt 0:00:20]} Bg7 {[%emt 0:00:18]} 7. Nc3 {[%emt 0:00:20]} O-O {[%emt 0:00:18]} 8. a4 {[%emt 0:00:38]} axb5 {[%emt 0:01:45]} 9. Bxb5 {[%emt 0:00:17]} Ba6 {[%emt 0:02:28]} 10. Ra3 {[%emt 0:02:15]} d6 {[%emt 0:08:33]} 11. O-O {[%emt 0:01:44]} Nbd7 {[%emt 0:06:00]} 12. e4 {[%emt 0:03:16]} Bxb5 {[%emt 0:11:19]} 13. axb5 {[%emt 0:00:17]} Rxa3 {[%emt 0:02:22]} 14. bxa3 {[%emt 0:00:04]} Qa5 {[%emt 0:01:23]} 15. Qb3 {[%emt 0:18:10]} Ra8 {[%emt 0:02:24]} 16. Bb2 {[%emt 0:08:02]} Ng4 {[%emt 0:08:51]} 17. Nd2 {[%emt 0:16:40]} Nb6 {[%emt 0:07:47]} 18. Qc2 {[%emt 0:20:41]} c4 {[%emt 0:22:47]} 19. Nf3 {[%emt 0:12:49]} Nd7 {[%emt 0:11:18]} 20. h3 {[%emt 0:05:48]} Nge5 {[%emt 0:03:23]} 21. Nd4 {[%emt 0:01:17]} Bf6 {[%emt 0:01:10]} 22. Nc6 {[%emt 0:01:30]} Qb6 {[%emt 0:00:19]} 23. a4 {[%emt 0:01:51]} Qc5 {[%emt 0:01:51]} 24. Ra1 {[%emt 0:03:07]} Nd3 {[%emt 0:00:17]} 25. Ba3 {[%emt 0:00:44]} Qxf2+ {[%emt 0:00:15]} 26. Qxf2 {[%emt 0:00:03]} Nxf2 {[%emt 0:00:08]} 27. Kxf2 {[%emt 0:00:36]} Bxc3 {[%emt 0:01:05]} 28. Rc1 {[%emt 0:00:12]} Bf6 {[%emt 0:00:32]} 29. a5 {[%emt 0:00:26]} Ne5 {[%emt 0:02:46]} 30. b6 {[%emt 0:01:28]} Nd3+ {[%emt 0:01:23]} 31. Kf1 {[%emt 0:00:07]} Nxc1 {[%emt 0:01:10]} 32. b7 {[%emt 0:00:18]} 1-0

[Event "4NCL Div 1 2024-25"]
[Site "England"]
[Date "2024.11.24"]
[Round "2.47"]
[White "Murphy, Hugh W"]
[Black "Badacsonyi, Stanley"]
[Result "1/2-1/2"]
[Annotator "RC"]
[ECO "C00"]
[WhiteElo "2005"]
[BlackElo "2298"]
[PlyCount "67"]
[EventDate "2024.11.23"]
[EventType "team-tourn"]
[EventCountry "ENG"]
[SourceTitle "playchess.com"]
[Source "ChessBase"]
[SourceQuality "1"]
[TimeControl "40/6000+30:3000+30"]

1. e4 {[%emt 0:10:06]} e6 {[%emt 0:10:04]} 2. Qe2 {[%emt 0:01:54]} c5 {[%emt 0:00:09]} 3. f4 {[%emt 0:00:10]} Nc6 {[%emt 0:00:50]} 4. Nf3 {[%emt 0:00:19]} Nge7 {[%emt 0:00:42]} 5. b3 {[%emt 0:00:39]} d5 {[%emt 0:00:20]} 6. Bb2 {[%emt 0:00:35]} dxe4 {[%emt 0:08:48]} 7. Qxe4 {[%emt 0:00:33]} Qd5 {[%emt 0:00:21]} 8. Nc3 {[%emt 0:01:46]} Qxe4+ {[%emt 0:01:44]} 9. Nxe4 {[%emt 0:00:08]} Nd5 {[%emt 0:00:04]} 10. Bb5 {[%emt 0:02:02]} Ndb4 {[%emt 0:04:39]} 11. O-O {[%emt 0:01:48]} a6 {[%emt 0:00:13]} 12. a3 {[%emt 0:04:08]} Nd5 {[%emt 0:10:25]} 13. Bxc6+ {[%emt 0:01:08]} bxc6 {[%emt 0:00:04]} 14. Ne5 {[%emt 0:00:54]} f6 {[%emt 0:06:06]} 15. Nc4 {[%emt 0:04:07]} Kd7 {[%emt 0:11:27]} 16. Na5 {[%emt 0:03:57]} Kc7 {[%emt 0:01:28]} 17. c4 {[%emt 0:13:04]} Nb6 {[%emt 0:01:03]} 18. Rad1 {[%emt 0:02:22]} Be7 {[%emt 0:05:54]} 19. Rfe1 {[%emt 0:05:09]} Rb8 {[%emt 0:02:25]} 20. d4 {[%emt 0:02:18]} cxd4 {[%emt 0:00:07]} 21. Bxd4 {[%emt 0:00:21]} Re8 {[%emt 0:02:41]} 22. Bc5 {[%emt 0:01:06]} Bxc5+ {[%emt 0:08:38]} 23. Nxc5 {[%emt 0:00:09]} e5 {[%emt 0:00:03]} 24. fxe5 {[%emt 0:01:46]} fxe5 {[%emt 0:00:16]} 25. Rf1 {[%emt 0:06:57]} Re7 {[%emt 0:01:13]} 26. Rf8 {[%emt 0:00:43]} Nd7 {[%emt 0:00:43]} 27. Nxd7 {[%emt 0:17:01]} Bxd7 {[%emt 0:00:24]} 28. Rxb8 {[%emt 0:00:56]} Kxb8 {[%emt 0:00:06]} 29. c5 {[%emt 0:01:07]} Kc7 {[%emt 0:00:08]} 30. Rd6 {[%emt 0:02:22]} e4 {[%emt 0:00:32]} 31. Kf2 {[%emt 0:01:00]} Rf7+ {[%emt 0:02:20]} 32. Ke3 {[%emt 0:00:40]} Rf1 {[%emt 0:00:07]} 33. Kxe4 {[%emt 0:01:05]} Rf2 {[%emt 0:00:06]} 34. g3 {[%emt 0:00:58]} 1/2-1/2

[Event "4NCL Div 1 2024-25"]
[Site "England"]
[Date "2024.11.24"]
[Round "2.48"]
[White "Villiers, Thomas"]
[Black "McCarthy, Kevin C"]
[Result "1-0"]
[Annotator "RC"]
[ECO "E17"]
[WhiteElo "2182"]
[BlackElo "1954"]
[PlyCount "51"]
[EventDate "2024.11.23"]
[EventType "team-tourn"]
[EventCountry "ENG"]
[SourceTitle "playchess.com"]
[Source "ChessBase"]
[SourceQuality "1"]
[TimeControl "40/6000+30:3000+30"]

1. d4 {[%emt 0:10:07]} e6 {[%emt 0:10:37]} 2. Nf3 {[%emt 0:00:25]} Nf6 {[%emt 0:00:16]} 3. c4 {[%emt 0:01:02]} b6 {[%emt 0:01:01]} 4. g3 {[%emt 0:00:45]} Bb7 {[%emt 0:00:05]} 5. Bg2 {[%emt 0:00:13]} Be7 {[%emt 0:02:18]} 6. Nc3 {[%emt 0:00:20]} O-O {[%emt 0:00:39]} 7. d5 {[%emt 0:00:59]} exd5 {[%emt 0:06:46]} 8. Nh4 {[%emt 0:04:10]} c6 {[%emt 0:11:16]} 9. cxd5 {[%emt 0:00:17]} cxd5 {[%emt 0:03:25]} 10. Nf5 {[%emt 0:01:02]} Nc6 {[%emt 0:16:23]} 11. O-O {[%emt 0:00:35]} d6 {[%emt 0:06:48]} 12. Bg5 {[%emt 0:01:19]} Ne8 {[%emt 0:08:52]} 13. Nxe7+ {[%emt 0:01:07]} Nxe7 {[%emt 0:00:06]} 14. Nxd5 {[%emt 0:00:13]} Bxd5 {[%emt 0:00:16]} 15. Bxd5 {[%emt 0:00:09]} Rc8 {[%emt 0:01:22]} 16. Bg2 {[%emt 0:02:38]} h6 {[%emt 0:01:04]} 17. Bf4 {[%emt 0:00:06]} Ng6 {[%emt 0:00:11]} 18. Bd2 {[%emt 0:00:27]} Qd7 {[%emt 0:09:03]} 19. Bc3 {[%emt 0:01:17]} Nc7 {[%emt 0:00:18]} 20. Qd4 {[%emt 0:02:13]} Ne6 {[%emt 0:01:55]} 21. Qd2 {[%emt 0:00:16]} Qe7 {[%emt 0:04:58]} 22. Rad1 {[%emt 0:08:30]} Rcd8 {[%emt 0:02:50]} 23. f4 {[%emt 0:08:17]} f5 {[%emt 0:06:07]} 24. e4 {[%emt 0:01:11]} fxe4 {[%emt 0:00:12]} 25. f5 {[%emt 0:00:07]} Ng5 {[%emt 0:04:12]} 26. fxg6 {[%emt 0:00:57]} 1-0